bitfinex-derivatives/quotes_BTCF0:USTF0_20260315
["timestamp","ask_amount","ask_price","bid_price","bid_amount"]
[1773534807449,0.0014,71122.0,71113.0,0.042179]
[1773534807849,0.04130958,71124.0,71113.0,0.042179]
[1773534808040,0.0014,71121.0,71113.0,0.042179]
[1773534808443,0.0014,71120.0,71113.0,0.042179]
[1773534808645,0.042172,71126.0,71113.0,0.042179]
[1773534808646,0.0014,71119.0,71113.0,0.042179]
[1773534808840,0.042172,71126.0,71113.0,0.042179]
[1773534809040,0.0014,71125.0,71113.0,0.042179]
[1773534809245,0.042172,71126.0,71113.0,0.042179]
[1773534809441,0.0014,71125.0,71113.0,0.042179]
[1773534809753,0.042172,71126.0,71113.0,0.042179]
[1773534809947,0.0014,71125.0,71113.0,0.042179]
[1773534810248,0.30936,71142.0,71111.0,0.01123]
[1773534810249,0.30936,71146.0,71112.0,0.03859622]
[1773534810446,0.30936,71146.0,71111.0,0.01123]
[1773534810447,0.042163,71141.0,71120.0,0.08902682]
[1773534810642,0.0014,71132.0,71120.0,0.12762304]
[1773534810847,0.0014,71131.0,71120.0,0.12762304]
[1773534811145,0.0014,71130.0,71120.0,0.12762304]
[1773534811351,0.0014,71129.0,71120.0,0.13885304]
[1773534811541,0.04130958,71140.0,71125.0,0.042172]
[1773534811741,0.04130958,71138.0,71120.0,0.01123]
[1773534812853,0.04130958,71134.0,71121.0,0.042174]
[1773534820357,0.04130958,71132.0,71120.0,0.01123]
[1773534820567,0.04130958,71127.0,71104.0,0.0014]
[1773534820761,0.04130958,71125.0,71105.0,0.0014]
[1773534821360,0.04130958,71125.0,71110.0,0.08902682]
[1773534822062,0.04130958,71125.0,71114.0,0.042178]
[1773534822762,0.20121853,71124.0,71114.0,0.042178]
[1773534823062,0.0014,71126.0,71114.0,0.042178]
[1773534823063,0.04130958,71125.0,71114.0,0.042178]
[1773534823262,0.24253207,71124.0,71114.0,0.042178]
[1773534823459,0.04130958,71124.0,71114.0,0.053408]
[1773534824261,0.20122841,71123.0,71114.0,0.053408]
[1773534824460,0.04130958,71123.0,71114.0,0.053408]
[1773534825556,0.0014,71126.0,71114.0,0.053408]
[1773534825753,0.20125932,71125.0,71114.0,0.053408]
[1773534825963,0.20125932,71124.0,71114.0,0.053408]
[1773534826162,0.20125932,71123.0,71115.0,0.042178]
[1773534826364,0.20125932,71123.0,71114.0,0.01123]
[1773534826365,0.08347858,71131.0,71114.0,0.01123]
[1773534826662,0.2448398,71130.0,71117.0,0.042177]
[1773534826857,0.2012698,71129.0,71117.0,0.042177]
[1773534827057,0.2012698,71128.0,71117.0,0.042177]
[1773534827257,0.04357,71130.0,71117.0,0.042177]
[1773534827258,0.2012698,71127.0,71117.0,0.042177]
[1773534827458,0.2012698,71126.0,71117.0,0.042177]
[1773534827661,0.2012698,71125.0,71117.0,0.042177]
[1773534827859,0.2026698,71124.0,71117.0,0.042177]
[1773534828066,0.2012698,71123.0,71117.0,0.042177]
[1773534832064,0.03773625,71122.0,71114.0,0.01123]
[1773534832265,0.03773625,71122.0,71105.0,0.0014]
[1773534833359,0.03773625,71122.0,71105.0,0.01263]
[1773534834967,0.03773625,71122.0,71113.0,0.042179]
[1773534835373,0.03773625,71122.0,71114.0,0.042179]
[1773534836964,0.03773625,71122.0,71114.0,0.053409]
[1773534838169,0.03773625,71122.0,71115.0,0.042178]
[1773534841378,0.0014,71124.0,71115.0,0.042178]
[1773534852383,0.19777903,71123.0,71115.0,0.042178]
[1773534852574,0.19777903,71122.0,71115.0,0.042178]
[1773534852775,0.19777903,71121.0,71115.0,0.042178]
[1773534852974,0.0014,71124.0,71115.0,0.042178]
[1773534853175,0.19777903,71123.0,71115.0,0.042178]
[1773534853376,0.19777903,71122.0,71115.0,0.042178]
[1773534853575,0.19777903,71121.0,71115.0,0.042178]
[1773534853775,0.0014,71124.0,71115.0,0.042178]
[1773534854076,0.19778408,71123.0,71115.0,0.042178]
[1773534854376,0.19778408,71122.0,71115.0,0.042178]
[1773534854676,0.19778408,71121.0,71115.0,0.042178]
[1773534854876,0.0014,71124.0,71115.0,0.042178]
[1773534855176,0.19779898,71123.0,71115.0,0.042178]
[1773534855379,0.19779898,71122.0,71115.0,0.042178]
[1773534855581,0.19779898,71121.0,71115.0,0.042178]
[1773534855882,0.0014,71124.0,71115.0,0.042178]
[1773534856071,0.19780076,71123.0,71115.0,0.042178]
[1773534856275,0.19780076,71122.0,71115.0,0.042178]
[1773534856485,0.19780076,71121.0,71115.0,0.042178]
[1773534856686,0.0014,71124.0,71115.0,0.042178]
[1773534856887,0.19780284,71123.0,71115.0,0.042178]
[1773534857085,0.19780284,71122.0,71115.0,0.042178]
[1773534857287,0.19780284,71121.0,71115.0,0.042178]
[1773534857488,0.0014,71124.0,71115.0,0.042178]
[1773534857676,0.19780308,71123.0,71116.0,0.042178]
[1773534857877,0.19780308,71122.0,71117.0,0.042177]
[1773534858090,0.19780308,71121.0,71117.0,0.042177]
[1773534858290,0.0014,71124.0,71117.0,0.042177]
[1773534858589,0.19780592,71123.0,71117.0,0.042177]
[1773534858885,0.19780592,71122.0,71117.0,0.042177]
[1773534859086,0.19780592,71121.0,71117.0,0.042177]
[1773534859286,0.19780592,71120.0,71117.0,0.042177]
[1773534859488,0.0014,71124.0,71117.0,0.042177]
[1773534859683,0.19780949,71123.0,71117.0,0.042177]
[1773534859886,0.19780949,71122.0,71117.0,0.042177]
[1773534860187,0.19780949,71121.0,71117.0,0.042177]
[1773534860488,0.19780949,71120.0,71117.0,0.042177]
[1773534860689,0.0014,71124.0,71117.0,0.042177]
[1773534860880,0.19781488,71123.0,71117.0,0.042177]
[1773534861079,0.19781488,71122.0,71117.0,0.042177]
[1773534861280,0.19781488,71121.0,71117.0,0.042177]
[1773534861486,0.19781488,71120.0,71117.0,0.042177]
[1773534861687,0.0014,71124.0,71117.0,0.042177]
[1773534861883,0.19782224,71123.0,71117.0,0.042177]
[1773534862087,0.19782224,71122.0,71117.0,0.042177]
[1773534862387,0.19782224,71121.0,71117.0,0.042177]
[1773534862591,0.19782224,71120.0,71117.0,0.042177]
[1773534862783,2.4e-07,71119.0,71117.0,0.042177]
[1773534862977,0.0014,71118.0,71117.0,0.042177]
[1773534864490,0.0014,71118.0,71115.0,0.042178]
[1773534864691,0.0014,71117.0,71115.0,0.042178]
[1773534867085,0.0014,71118.0,71115.0,0.042178]
[1773534868093,0.08139429,71127.0,71115.0,0.042178]
[1773534868399,0.0014,71126.0,71115.0,0.042178]
[1773534869293,0.0014,71126.0,71114.0,0.01123]
[1773534870395,0.0014,71125.0,71114.0,0.01123]
[1773534871202,0.0014,71124.0,71118.0,0.042176]
[1773534871498,0.0014,71123.0,71118.0,0.042176]
[1773534871699,0.08139229,71131.0,71118.0,0.042176]
[1773534871700,0.0014,71122.0,71118.0,0.042176]
[1773534872004,0.08139229,71131.0,71118.0,0.042176]
[1773534872406,0.0014,71130.0,71118.0,0.042176]
[1773534872706,0.08139229,71131.0,71118.0,0.042176]
[1773534872900,0.0014,71129.0,71118.0,0.042176]
[1773534873202,0.08139229,71131.0,71118.0,0.042176]
[1773534873397,0.0014,71128.0,71118.0,0.042176]
[1773534873704,0.08139229,71131.0,71118.0,0.042176]
[1773534873896,0.0014,71127.0,71118.0,0.042176]
[1773534874097,0.01123,71134.0,71114.0,0.01123]
[1773534874098,0.042168,71133.0,71114.0,0.01123]
[1773534874399,0.01123,71134.0,71124.0,0.042173]
[1773534874601,0.0014,71133.0,71124.0,0.042173]
[1773534874897,0.03922329,71149.0,71121.0,0.03669126]
[1773534875098,0.03922329,71149.0,71129.0,0.04217]
[1773534875099,0.042163,71142.0,71129.0,0.04217]
[1773534875403,0.0014,71141.0,71129.0,0.04217]
[1773534875599,0.0014,71141.0,71130.0,0.042169]
[1773534875901,0.0014,71141.0,71131.0,0.03686166]
[1773534876301,0.0014,71140.0,71131.0,0.03686166]
[1773534876503,0.001,71141.0,71131.0,0.02621161]
[1773534876704,0.0014,71140.0,71127.0,0.01123]
[1773534877002,0.0014,71140.0,71125.0,0.03191361]
[1773534877189,0.0014,71139.0,71130.0,0.042169]
[1773534877388,0.0014,71139.0,71130.0,0.03690536]
[1773534877600,0.0014,71139.0,71130.0,0.03163471]
[1773534877801,0.0014,71138.0,71130.0,0.03163471]
[1773534878106,0.0014,71138.0,71130.0,0.02636216]
[1773534878402,0.0014,71137.0,71130.0,0.02109932]
[1773534878793,0.0014,71136.0,71132.0,0.042168]
[1773534878998,0.02655194,71152.0,71127.0,0.01123]
[1773534878999,0.03922329,71151.0,71134.0,0.042167]
[1773534879198,0.01263,71150.0,71134.0,0.042167]
[1773534879800,0.04216,71147.0,71134.0,0.042167]
[1773534880304,0.04216,71147.0,71132.0,0.042168]
[1773534880610,0.04216,71146.0,71132.0,0.042168]
[1773534881898,0.042161,71144.0,71132.0,0.042168]
[1773534882093,0.0014,71143.0,71132.0,0.042168]
[1773534885508,0.0014,71142.0,71132.0,0.042168]
[1773534886409,0.0014,71141.0,71135.0,0.042166]
[1773534886601,0.0014,71140.0,71135.0,0.042166]
[1773534886999,0.0014,71139.0,71133.0,0.042167]
[1773534887207,0.0014,71138.0,71133.0,0.042167]
[1773534887406,0.04216,71146.0,71133.0,0.042167]
[1773534887407,0.0014,71137.0,71133.0,0.042167]
[1773534890610,0.0014,71137.0,71131.0,0.07886026]
[1773534893012,0.03891124,71131.0,71109.0,0.042182]
[1773534893213,0.04218,71113.0,71100.0,0.03814113]
[1773534893416,0.04218,71113.0,71101.0,0.0014]
[1773534893713,0.0014,71117.0,71101.0,0.0014]
[1773534893909,0.042181,71110.0,71101.0,0.0014]
[1773534894305,0.03374478,71110.0,71101.0,0.0014]
[1773534894810,0.03374478,71110.0,71100.0,0.01263]
[1773534895312,0.03374478,71110.0,71100.0,0.01123]
[1773534895508,0.04218,71112.0,71100.0,0.01123]
[1773534895718,0.04218,71112.0,71100.0,0.01263]
[1773534896010,0.04218,71112.0,71100.0,0.01123]
[1773534896207,0.04218,71112.0,71100.0,0.01263]
[1773534896417,0.042192,71093.0,71082.0,0.25334747]
[1773534896602,0.04219,71095.0,71082.0,0.00017843]
[1773534896804,0.04219,71095.0,71082.0,0.00157843]
[1773534897209,0.03891124,71100.0,71083.0,0.0014]
[1773534897411,0.00983622,71098.0,71084.0,0.0014]
[1773534898108,0.042191,71095.0,71084.0,0.0014]
[1773534900313,0.042191,71095.0,71084.0,0.01124]
[1773534900614,0.042191,71094.0,71084.0,0.01124]
[1773534901103,0.00983622,71092.0,71084.0,0.01124]
[1773534902315,0.0014,71094.0,71084.0,0.01124]
[1773534917726,0.043591,71094.0,71084.0,0.01124]
[1773534919126,0.00016475,71097.0,71084.0,0.04938113]
[1773534920019,0.042191,71094.0,71084.0,0.04938113]
[1773534921927,0.042198,71083.0,71065.0,0.16811926]
[1773534922227,0.00012298,71082.0,71071.0,0.16811926]
[1773534922422,0.00012298,71082.0,71072.0,0.0014]
[1773534922621,0.03388147,71084.0,71072.0,0.0014]
[1773534923619,5.545e-05,71083.0,71072.0,0.0014]
[1773534923814,5.545e-05,71083.0,71071.0,0.042204]
[1773534924022,5.545e-05,71083.0,71072.0,0.0014]
[1773534924422,5.545e-05,71083.0,71071.0,0.042204]
[1773534924626,5.545e-05,71083.0,71072.0,0.0014]
[1773534925032,0.00843851,71080.0,71072.0,0.0014]
[1773534925229,0.00843851,71080.0,71069.0,0.21032426]
[1773534925537,0.0422,71078.0,71072.0,0.0014]
[1773534937236,0.042202,71076.0,71070.0,0.16811926]
[1773534937440,0.0014,71085.0,71050.0,5.7e-07]
[1773534937441,0.04892765,71065.0,71050.0,5.7e-07]
[1773534937627,0.04892765,71065.0,71038.0,0.03876653]
[1773534937628,0.04076754,71064.0,71044.0,0.25285]
[1773534937828,0.03936754,71062.0,71043.0,0.0014]
[1773534938035,0.042213,71058.0,71043.0,0.0014]
[1773534938331,0.00843851,71055.0,71043.0,0.0014]
[1773534938537,0.00843851,71055.0,71043.0,0.04016653]
[1773534938740,0.00013041,71054.0,71048.0,0.01124]
[1773534939534,0.01124,71050.0,71048.0,0.01124]
[1773534939730,0.00013041,71054.0,71048.0,0.01124]
[1773534940236,0.00013041,71054.0,71044.0,0.04222]
[1773534940647,0.00856892,71054.0,71043.0,0.0014]
[1773534940837,0.00856892,71054.0,71046.0,0.01124]
[1773534941739,0.042215,71053.0,71040.0,0.0014]
[1773534942140,0.042215,71053.0,71039.0,0.042223]
[1773534942347,0.00843851,71050.0,71040.0,0.0014]
[1773534942642,0.00843851,71050.0,71039.0,0.042223]
[1773534943045,0.00843851,71050.0,71040.0,0.0014]
[1773534943549,0.00843851,71050.0,71049.0,0.01124]
[1773534944642,0.01124,71051.0,71049.0,0.01124]
[1773534945147,0.00013041,71054.0,71041.0,0.0014]
[1773534945953,0.00013041,71054.0,71041.0,0.043622]
[1773534946344,0.00013041,71054.0,71041.0,0.054862]
[1773534947446,0.00013041,71054.0,70983.0,0.05]
[1773534947447,0.08908232,71051.0,71024.0,0.03876653]
[1773534947648,0.03936754,71050.0,71032.0,0.0014]
[1773534948254,0.03936754,71049.0,71031.0,0.00070392]
[1773534948459,0.03936754,71047.0,71028.0,0.0014]
[1773534948780,0.042223,71039.0,71028.0,0.0014]
[1773534949367,0.042223,71039.0,71025.0,0.042231]
[1773534949562,0.042223,71039.0,71026.0,0.0014]
[1773534949963,0.042223,71039.0,71027.0,0.0014]
[1773534950164,0.08811994,71039.0,71027.0,0.0014]
[1773534951366,0.042222,71042.0,71027.0,0.04363]
[1773534952056,0.042223,71041.0,71027.0,0.04363]
[1773534952369,0.09045721,71037.0,71025.0,0.0014]
[1773534952561,0.04836355,71036.0,71025.0,0.0014]
[1773534952961,0.04235734,71036.0,71023.0,0.042233]
[1773534953269,0.042226,71035.0,71021.0,0.08692265]
[1773534953467,0.042226,71035.0,71021.0,0.042234]
[1773534953969,0.042226,71035.0,71022.0,0.0014]
[1773534954862,0.03976668,71035.0,71022.0,0.0014]
[1773534956681,0.05101668,71035.0,71022.0,0.0014]
[1773534958968,0.042227,71033.0,71022.0,0.0014]
[1773534959173,0.042227,71033.0,71020.0,0.13131632]
[1773534959375,0.042227,71033.0,71021.0,0.0014]
[1773534959574,0.053476,71035.0,71021.0,0.043634]
[1773534961078,0.00013134,71036.0,71021.0,0.04608865]
[1773534961372,0.00013134,71036.0,71026.0,0.04468865]
[1773534961574,0.00013134,71036.0,71026.0,0.042231]
[1773534961876,0.00013134,71036.0,71027.0,0.04223]
[1773534962077,0.00013134,71036.0,71028.0,0.0014]
[1773534962675,0.01137134,71036.0,71028.0,0.0014]
[1773534965379,0.27192312,71035.0,71028.0,0.0014]
[1773534965580,0.27192312,71034.0,71028.0,0.0014]
[1773534965781,0.01137134,71036.0,71028.0,0.0014]
[1773534965982,0.2719433,71035.0,71028.0,0.0014]
[1773534966183,0.2719433,71034.0,71028.0,0.0014]
[1773534966481,0.2719433,71033.0,71028.0,0.0014]
[1773534966682,0.2719433,71032.0,71028.0,0.0014]
[1773534966983,0.01137134,71036.0,71028.0,0.0014]
[1773534967181,0.27216938,71035.0,71028.0,0.0014]
[1773534967380,0.27216938,71034.0,71028.0,0.0014]
[1773534967583,0.27216938,71033.0,71028.0,0.0014]
[1773534967880,0.27216938,71032.0,71028.0,0.0014]
[1773534968072,0.27216938,71031.0,71028.0,0.0014]
[1773534968272,0.01137134,71036.0,71028.0,0.0014]
[1773534971878,0.04823221,71035.0,71023.0,0.042233]
[1773534972085,0.04823221,71035.0,71027.0,0.0014]
[1773534973587,0.09045821,71035.0,71027.0,0.0014]
[1773534974085,0.04823221,71034.0,71027.0,0.0014]
[1773534976378,0.09045921,71034.0,71020.0,0.043634]
[1773534976578,0.09045921,71034.0,71020.0,0.13284899]
[1773534976786,0.04823221,71033.0,71021.0,0.042234]
[1773534976985,0.04823221,71033.0,71022.0,0.0014]
[1773534977383,0.04823221,71033.0,71021.0,0.042234]
[1773534977981,0.04823221,71033.0,71022.0,0.0014]
[1773534978180,0.04823221,71033.0,71022.0,0.043633]
[1773534978787,0.04823221,71033.0,71022.0,0.042233]
[1773534978991,0.04823221,71033.0,71022.0,0.043633]
[1773534979291,0.04823221,71033.0,71022.0,0.042233]
[1773534979494,0.04823221,71033.0,71023.0,0.042233]
[1773534980294,0.25820248,71032.0,71023.0,0.042233]
[1773534980493,0.25820248,71031.0,71023.0,0.042233]
[1773534980793,0.25820248,71030.0,71023.0,0.042233]
[1773534980992,0.04823221,71033.0,71023.0,0.042233]
[1773534981182,0.25820244,71032.0,71023.0,0.042233]
[1773534981382,0.25820244,71031.0,71023.0,0.042233]
[1773534981582,0.25820244,71030.0,71023.0,0.042233]
[1773534981781,0.04823221,71033.0,71023.0,0.042233]
[1773534981982,0.2582079,71032.0,71023.0,0.042233]
[1773534982291,0.2582079,71031.0,71023.0,0.042233]
[1773534982491,0.04823221,71033.0,71023.0,0.042233]
[1773534982790,0.25821362,71032.0,71023.0,0.042233]
[1773534982985,0.25821362,71031.0,71023.0,0.042233]
[1773534983185,0.25821362,71030.0,71023.0,0.042233]
[1773534983386,0.04823221,71033.0,71023.0,0.042233]
[1773534983587,0.25822392,71032.0,71023.0,0.042233]
[1773534983786,0.25822392,71031.0,71023.0,0.042233]
[1773534984092,0.04823221,71033.0,71023.0,0.042233]
[1773534984293,0.25557589,71032.0,71023.0,0.042233]
[1773534984591,0.25557589,71031.0,71023.0,0.042233]
[1773534984793,0.04823221,71033.0,71022.0,0.0014]
[1773534984983,0.25557613,71032.0,71022.0,0.0014]
[1773534985184,0.25557613,71031.0,71021.0,0.042234]
[1773534985492,0.0486439,71014.0,71004.0,0.0014]
[1773534985884,0.0014,71021.0,70990.0,0.08921499]
[1773534985885,0.0486439,71012.0,70990.0,0.08921499]
[1773534986084,0.0486439,71011.0,71000.0,0.0014]
[1773534986279,0.0486439,71020.0,71007.0,0.042242]
[1773534986496,0.2568544,71019.0,71007.0,0.042242]
[1773534986686,0.25527636,71018.0,71007.0,0.042242]
[1773534986887,0.25527636,71017.0,71007.0,0.042242]
[1773534987086,0.25527636,71016.0,71007.0,0.042242]
[1773534987391,0.25527636,71015.0,71007.0,0.042242]
[1773534987588,0.05022194,71019.0,71007.0,0.042242]
[1773534987794,0.25505593,71018.0,71007.0,0.042242]
[1773534987995,0.05022194,71019.0,71007.0,0.042242]
[1773534990196,0.04882194,71019.0,71007.0,0.042242]
[1773534990385,0.0014,71018.0,71003.0,0.0014]
[1773534990786,0.00017804,71019.0,71003.0,0.0014]
[1773534990993,0.00157804,71019.0,71003.0,0.0014]
[1773534991389,0.00157804,71019.0,71009.0,0.042241]
[1773534991586,0.00157804,71019.0,71009.0,0.08921499]
[1773534991587,4e-08,71019.0,71009.0,0.08921499]
[1773534991785,0.01125,71026.0,71009.0,0.08921499]
[1773534991786,0.01265,71026.0,71016.0,0.042237]
[1773534992094,0.05763505,71038.0,71016.0,0.13694198]
[1773534992095,0.0486439,71036.0,71016.0,0.13694198]
[1773534992285,0.23864148,71035.0,71017.0,0.0014]
[1773534992488,0.23724148,71034.0,71024.0,0.042232]
[1773534992787,0.00013145,71033.0,71024.0,0.042232]
[1773534993791,0.00013145,71033.0,71022.0,0.042233]
[1773534994187,0.00013145,71033.0,71017.0,0.0014]
[1773534994388,0.00013145,71033.0,71021.0,0.042234]
[1773534994886,0.00013145,71033.0,71017.0,0.0014]
[1773534995088,0.00013145,71033.0,71022.0,0.042233]
[1773534995397,0.04877535,71033.0,71020.0,0.042234]
[1773534997497,0.0486439,71032.0,71018.0,0.042236]
[1773534997693,0.0486439,71031.0,71019.0,0.042235]
[1773534999994,0.0486439,71030.0,71014.0,0.01125]
[1773535000200,0.0486439,71028.0,71015.0,0.043637]
[1773535001404,0.0486439,71027.0,71015.0,0.043637]
[1773535002501,0.23659526,71026.0,71015.0,0.043637]
[1773535002692,0.23659526,71025.0,71015.0,0.043637]
[1773535002898,0.23659526,71024.0,71015.0,0.043637]
[1773535003201,0.0486439,71027.0,71015.0,0.043637]
[1773535003202,0.23673877,71023.0,71015.0,0.043637]
[1773535003504,0.00013145,71023.0,71015.0,0.043637]
[1773535006996,0.00013145,71023.0,71016.0,0.042237]
[1773535010000,0.04778576,71041.0,71013.0,0.04692577]
[1773535010194,0.042225,71037.0,71023.0,0.042233]
[1773535010398,0.23668674,71036.0,71023.0,0.042233]
[1773535010906,0.0014,71035.0,71023.0,0.042233]
[1773535011107,0.23668674,71034.0,71028.0,0.01125]
[1773535011407,0.23668674,71034.0,71023.0,0.042233]
[1773535011911,0.01125,71031.0,71023.0,0.042233]
[1773535012200,0.23668674,71030.0,71023.0,0.042233]
[1773535012392,0.01125,71031.0,71023.0,0.042233]
[1773535012596,0.0014,71035.0,71023.0,0.042233]
[1773535012799,0.23639946,71034.0,71023.0,0.042233]
[1773535012998,0.23639946,71033.0,71023.0,0.042233]
[1773535013307,0.0014,71035.0,71023.0,0.042233]
[1773535013507,0.23641858,71034.0,71023.0,0.042233]
[1773535013694,0.23641858,71033.0,71023.0,0.042233]
[1773535013900,0.0014,71035.0,71023.0,0.042233]
[1773535014104,0.01125,71032.0,71023.0,0.042233]
[1773535017406,0.04781649,71043.0,71021.0,0.04736039]
[1773535017708,0.23787496,71042.0,71021.0,0.04736039]
[1773535018007,0.23647496,71041.0,71021.0,0.04736039]
[1773535018607,0.23647496,71041.0,71030.0,0.01125]
[1773535019107,0.042223,71040.0,71030.0,0.01125]
[1773535019304,0.01125,71032.0,71030.0,0.01125]
[1773535019805,0.042223,71040.0,71030.0,0.01125]
[1773535020102,0.23288648,71039.0,71027.0,0.04223]
[1773535020301,0.23428648,71038.0,71027.0,0.04223]
[1773535020600,0.23288648,71037.0,71027.0,0.04223]
[1773535020800,0.23288648,71037.0,71028.0,0.01125]
[1773535021705,0.23288648,71037.0,71028.0,0.05348]
[1773535021899,0.0014,71037.0,71028.0,0.05348]
[1773535025403,0.042223,71040.0,71028.0,0.05348]
[1773535025608,0.0014,71037.0,71028.0,0.05348]
[1773535026508,0.042223,71040.0,71028.0,0.05348]
[1773535026704,0.23336246,71039.0,71028.0,0.05348]
[1773535026899,0.23196246,71038.0,71028.0,0.05348]
[1773535027100,0.23196246,71037.0,71028.0,0.05348]
[1773535027300,0.0014,71039.0,71028.0,0.05348]
[1773535027506,0.23195516,71038.0,71028.0,0.05348]
[1773535027806,0.23195516,71037.0,71028.0,0.05348]
[1773535028012,0.0014,71037.0,71028.0,0.05348]
[1773535034213,0.23195431,71036.0,71028.0,0.05348]
[1773535034510,0.0014,71037.0,71028.0,0.05348]
[1773535034710,0.23195667,71036.0,71028.0,0.05348]
[1773535034914,0.0014,71037.0,71028.0,0.05348]
[1773535035104,0.23195667,71036.0,71028.0,0.05348]
[1773535035306,0.0014,71037.0,71028.0,0.05348]
[1773535035502,0.2319731,71036.0,71028.0,0.05348]
[1773535035703,0.0014,71037.0,71028.0,0.05348]
[1773535035904,0.23197299,71036.0,71028.0,0.05348]
[1773535036101,0.0014,71037.0,71028.0,0.01125]
[1773535036305,0.23198547,71036.0,71028.0,0.01125]
[1773535047710,0.10046569,71050.0,71028.0,0.01125]
[1773535047711,0.01125,71050.0,71029.0,0.04227309]
[1773535047916,0.043618,71049.0,71036.0,0.042225]
[1773535048212,0.0014,71048.0,71036.0,0.042225]
[1773535048417,0.042218,71048.0,71036.0,0.042225]
[1773535048607,0.0014,71047.0,71036.0,0.042225]
[1773535048806,0.0014,71046.0,71033.0,0.04227309]
[1773535049216,0.053467,71050.0,71033.0,0.04227309]
[1773535049427,0.0014,71047.0,71033.0,0.04227309]
[1773535049813,0.054467,71050.0,71033.0,0.04227309]
[1773535050014,0.0014,71047.0,71033.0,0.04227309]
[1773535050214,0.0014,71048.0,71033.0,0.04227309]
[1773535050414,0.053467,71050.0,71037.0,0.042224]
[1773535050624,0.0014,71049.0,71037.0,0.042224]
[1773535051414,0.053467,71050.0,71037.0,0.042224]
[1773535051623,0.0014,71049.0,71037.0,0.042224]
[1773535053012,0.04629958,71057.0,71038.0,0.042224]
[1773535053317,0.042216,71052.0,71032.0,0.04227309]
[1773535053720,0.0014,71051.0,71042.0,0.042221]
[1773535054123,0.042215,71053.0,71040.0,0.042223]
[1773535054321,0.0014,71052.0,71040.0,0.042223]
[1773535054626,0.042215,71053.0,71040.0,0.042223]
[1773535054816,0.042214,71055.0,71042.0,0.042222]
[1773535055016,0.0014,71054.0,71040.0,0.08921569]
[1773535055315,0.0014,71054.0,71043.0,0.042221]
[1773535056524,0.0014,71053.0,71043.0,0.042221]
[1773535058424,0.053452,71058.0,71046.0,0.042219]
[1773535058627,0.0014,71057.0,71046.0,0.042219]
[1773535058828,0.01124,71058.0,71046.0,0.042219]
[1773535059030,0.0014,71056.0,71046.0,0.042219]
[1773535059425,0.0014,71055.0,71041.0,0.04227309]
[1773535059618,0.042211,71060.0,71041.0,0.04227309]
[1773535059619,0.0014,71054.0,71041.0,0.04227309]
[1773535059831,0.042212,71059.0,71045.0,0.042219]
[1773535060125,0.20615615,71058.0,71045.0,0.042219]
[1773535060329,0.20475615,71057.0,71045.0,0.042219]
[1773535060526,0.20475615,71056.0,71045.0,0.042219]
[1773535060722,0.20475615,71055.0,71045.0,0.042219]
[1773535060923,0.043612,71058.0,71045.0,0.042219]
[1773535061130,0.20472666,71057.0,71045.0,0.042219]
[1773535061323,0.20472666,71056.0,71045.0,0.042219]
[1773535061523,0.20472666,71055.0,71045.0,0.042219]
[1773535061716,0.043612,71058.0,71045.0,0.042219]
[1773535061919,0.20470231,71057.0,71045.0,0.042219]
[1773535062119,0.20470231,71056.0,71045.0,0.042219]
[1773535062326,0.043612,71058.0,71045.0,0.042219]
[1773535063219,0.0014,71057.0,71045.0,0.042219]
[1773535063930,0.0014,71057.0,71041.0,0.04227309]
[1773535064130,0.042208,71065.0,71048.0,0.04227309]
[1773535064327,0.043609,71064.0,71048.0,0.04227309]
[1773535065920,0.043609,71064.0,71050.0,0.042217]
[1773535066232,0.043609,71064.0,71051.0,0.042216]
[1773535066928,0.042209,71064.0,71051.0,0.042216]
[1773535067132,0.0014,71063.0,71051.0,0.042216]
[1773535067333,0.04361,71063.0,71051.0,0.042216]
[1773535068331,0.04361,71063.0,71052.0,0.00246298]
[1773535075036,0.04361,71063.0,71051.0,0.03977898]
[1773535077331,0.04221,71062.0,71050.0,0.13143169]
[1773535079230,0.042209,71064.0,71051.0,0.042216]
[1773535079542,0.0014,71061.0,71051.0,0.042216]
[1773535083036,0.0014,71061.0,71052.0,0.042215]
[1773535083931,0.0014,71065.0,71051.0,0.04564618]
[1773535084131,0.042205,71070.0,71057.0,0.042212]
[1773535084332,0.0014,71069.0,71057.0,0.042212]
[1773535085435,0.0014,71068.0,71057.0,0.042212]
[1773535091340,0.042205,71070.0,71058.0,0.08785818]
[1773535091544,0.0014,71069.0,71058.0,0.08785818]
[1773535091945,0.04449693,71077.0,71058.0,0.04564618]
[1773535092141,0.042205,71071.0,71058.0,0.08785818]
[1773535092342,0.0014,71070.0,71058.0,0.08785818]
[1773535093144,0.043605,71070.0,71058.0,0.08785818]
[1773535098753,0.0014,71070.0,71061.0,0.04221]
[1773535099050,0.0014,71073.0,71062.0,0.04564618]
[1773535099245,0.042202,71075.0,71062.0,0.04564618]
[1773535099441,0.0014,71073.0,71062.0,0.04564618]
[1773535100250,0.042203,71074.0,71062.0,0.04564618]
[1773535100440,0.0014,71073.0,71062.0,0.04564618]
[1773535100844,0.042203,71074.0,71062.0,0.04564618]
[1773535101044,0.01124,71078.0,71062.0,0.04564618]
[1773535101342,0.0014,71077.0,71065.0,0.042208]
[1773535101941,0.0014,71078.0,71066.0,0.04248677]
[1773535102146,0.043601,71078.0,71066.0,0.08469377]
[1773535102955,0.043601,71078.0,71066.0,0.04248677]
[1773535104150,0.042201,71077.0,71066.0,0.04248677]
[1773535104951,0.042208,71065.0,71052.0,0.042216]
[1773535105257,0.042208,71066.0,71052.0,0.042215]
[1773535105457,0.042208,71066.0,71053.0,0.0014]
[1773535105655,0.042209,71063.0,71053.0,0.0014]
[1773535106057,0.042209,71063.0,71050.0,0.042217]
[1773535106360,0.042209,71063.0,71050.0,0.043617]
[1773535107759,0.042209,71063.0,71050.0,0.042217]
[1773535108060,0.042209,71063.0,71050.0,0.043617]
[1773535108761,0.042209,71063.0,71050.0,0.042217]
[1773535109058,0.042209,71063.0,71050.0,0.043617]
[1773535109260,0.042209,71063.0,71050.0,0.042217]
[1773535110261,0.043609,71063.0,71050.0,0.042217]
[1773535111055,0.0014,71063.0,71049.0,0.0014]